[Event "GER-ch Youth U14W 2020"]
[Site "Willingen"]
[Date "2020.10.23"]
[Round "5.6"]
[White "Buchholz, Maja"]
[Black "Hubert, Charlotte"]
[Result "1/2-1/2"]
[ECO "A37"]
[WhiteElo "1628"]
[BlackElo "1438"]
[Annotator "NA RC"]
[PlyCount "130"]
[EventDate "2020.10.20"]
[EventType "swiss"]
[EventRounds "7"]
[EventCountry "GER"]
[SourceTitle "playchess.com"]
[Source "ChessBase"]
[SourceQuality "1"]
[TimeControl "40/5400+30:1800+30"]

1. g3 {[%emt 0:00:00]} c5 {[%emt 0:00:35]} 2. Bg2 {[%emt 0:00:00]} g6 {[%emt 0:00:31]} 3. Nf3 {[%emt 0:00:22]} Bg7 {[%emt 0:00:32]} 4. c4 {[%emt 0:00:56]} Nc6 {[%emt 0:00:37]} 5. Nc3 {[%emt 0:00:17]} e6 {[%emt 0:00:18]} 6. Ne4 {[%emt 0:03:37]} d6 {[%emt 0:05:14]} 7. d3 {[%emt 0:01:08]} d5 {[%emt 0:07:20]} 8. Ned2 {[%emt 0:06:35]} Nge7 {[%emt 0:03:00]} 9. Rb1 {[%emt 0:06:36]} O-O {[%emt 0:01:19]} 10. a3 {[%emt 0:03:05]} a5 {[%emt 0:01:53]} 11. b3 {[%emt 0:00:35]} b6 {[%emt 0:05:46]} 12. h4 {[%emt 0:05:54]} h6 {[%emt 0:06:22]} 13. Bb2 {[%emt 0:01:08]} d4 {[%emt 0:09:32]} 14. O-O {[%emt 0:05:50]} Bb7 {[%emt 0:02:44]} 15. Ne1 {[%emt 0:05:22]} Qc7 {[%emt 0:04:46]} 16. Ndf3 {[%emt 0:00:51]} e5 {[%emt 0:03:23]} 17. Nc2 {[%emt 0:05:09]} f5 {[%emt 0:06:45]} 18. Nd2 {[%emt 0:06:21]} g5 {[%emt 0:08:24]} 19. hxg5 {[%emt 0:05:28]} hxg5 {[%emt 0:00:19]} 20. e3 {[%emt 0:00:16]} Nd8 {[%emt 0:07:25]} 21. exd4 {[%emt 0:05:12]} cxd4 {[%emt 0:01:29]} 22. b4 {[%emt 0:01:00]} a4 {[%emt 0:02:03]} 23. Bxb7 {[%emt 0:11:48]} Nxb7 {[%emt 0:01:24]} 24. Kg2 {[%emt 0:00:43]} g4 {[%emt 0:01:44]} 25. Rh1 {[%emt 0:01:38]} Qc6+ {[%emt 0:00:43]} 26. f3 {[%emt 0:00:51]} Rad8 {[%emt 0:03:09]} 27. Qe2 {[%emt 0:01:34]} Ng6 {[%emt 0:06:28]} 28. Rbf1 {[%emt 0:06:08]} Rde8 {[%emt 0:03:47]} 29. Ne1 {[%emt 0:04:45]} gxf3+ {[%emt 0:02:30]} 30. Qxf3 {[%emt 0:05:20]} e4 {[%emt 0:01:00]} 31. Qh5 {[%emt 0:00:40]} exd3+ {[%emt 0:01:21]} 32. Qf3 {[%emt 0:02:12]} Re2+ {[%emt 0:00:57]} 33. Rf2 {[%emt 0:00:24]} Qxf3+ {[%emt 0:00:46]} 34. Nexf3 {[%emt 0:00:35]} Rd8 {[%emt 0:01:11]} 35. Re1 {[%emt 0:00:53]} Re3 {[%emt 0:01:02]} 36. Nf1 {[%emt 0:01:24]} Rxe1 {[%emt 0:00:06]} 37. Nxe1 {[%emt 0:00:04]} Rc8 {[%emt 0:00:42]} 38. Nxd3 {[%emt 0:01:38]} Rxc4 {[%emt 0:00:19]} 39. Rxf5 {[%emt 0:00:19]} Rc2+ {[%emt 0:00:18]} 40. Rf2 {[%emt 0:00:06]} Rxf2+ {[%emt 0:00:41]} 41. Kxf2 {[%emt 0:31:06]} Nd6 {[%emt 0:05:49]} 42. Nd2 {[%emt 0:00:00]} Ne7 {[%emt 0:03:06]} 43. Nf4 {[%emt 0:00:00]} Kf7 {[%emt 0:07:36]} 44. g4 {[%emt 0:00:00]} b5 {[%emt 0:04:10]} 45. Nh5 {[%emt 0:00:00]} Bh8 {[%emt 0:02:20]} 46. Bc1 {[%emt 0:00:00]} Nd5 {[%emt 0:02:40]} 47. Ke2 {[%emt 0:00:00]} Ke6 {[%emt 0:02:09]} 48. Kd3 {[%emt 0:00:00]} Ne3 {[%emt 0:02:32]} 49. Nf4+ {[%emt 0:00:00]} Kf7 {[%emt 0:01:50]} 50. Nf3 {[%emt 0:00:00]} Nxg4 {[%emt 0:01:01]} 51. Nxd4 {[%emt 0:00:00]} Nf2+ {[%emt 0:01:31]} 52. Ke3 {[%emt 0:00:00]} Nc4+ {[%emt 0:00:22]} 53. Kxf2 {[%emt 0:00:00]} Bxd4+ {[%emt 0:00:06]} 54. Ke2 {[%emt 0:00:00]} Bb2 {[%emt 0:01:13]} 55. Kd1 {[%emt 0:01:10]} Bxc1 {[%emt 0:00:28]} 56. Kxc1 {[%emt 0:00:04]} Nxa3 {[%emt 0:00:08]} 57. Ne2 {[%emt 0:02:02]} Ke6 {[%emt 0:00:31]} 58. Kb2 {[%emt 0:00:27]} Nc4+ {[%emt 0:00:07]} 59. Kc3 {[%emt 0:01:47]} Ke5 {[%emt 0:00:40]} 60. Kc2 {[%emt 0:01:40]} Kd5 {[%emt 0:00:56]} 61. Nc3+ {[%emt 0:01:11]} Kc6 {[%emt 0:00:06]} 62. Ne2 {[%emt 0:00:11]} Nb6 {[%emt 0:00:42]} 63. Nd4+ {[%emt 0:00:13]} Kd5 {[%emt 0:00:14]} 64. Kd3 {[%emt 0:01:22]} Nc4 {[%emt 0:01:17]} 65. Nxb5 {[%emt 0:00:27]} Nb2+ {[%emt 0:00:41]} 1/2-1/2

[Event "GER-ch Youth U14W 2020"]
[Site "Willingen"]
[Date "2020.10.23"]
[Round "5.7"]
[White "Prinzen, Siri Marleen"]
[Black "Petersen, Sophie"]
[Result "1-0"]
[ECO "B90"]
[WhiteElo "1712"]
[BlackElo "1524"]
[Annotator "NA RC"]
[PlyCount "113"]
[EventDate "2020.10.20"]
[EventType "swiss"]
[EventRounds "7"]
[EventCountry "GER"]
[SourceTitle "playchess.com"]
[Source "ChessBase"]
[SourceQuality "1"]
[TimeControl "40/5400+30:1800+30"]

1. e4 {[%emt 0:00:00]} c5 {[%emt 0:00:00]} 2. Nc3 {[%emt 0:00:00]} d6 {[%emt 0:00:00]} 3. Nge2 {[%emt 0:00:19]} Nf6 {[%emt 0:02:15]} 4. d4 {[%emt 0:00:10]} cxd4 {[%emt 0:00:56]} 5. Nxd4 {[%emt 0:00:07]} a6 {[%emt 0:00:44]} 6. f3 {[%emt 0:05:32]} e5 {[%emt 0:02:23]} 7. Nb3 {[%emt 0:01:45]} Be6 {[%emt 0:04:15]} 8. Bg5 {[%emt 0:07:44]} Nbd7 {[%emt 0:03:12]} 9. Qd2 {[%emt 0:04:39]} h6 {[%emt 0:03:02]} 10. Be3 {[%emt 0:01:34]} h5 {[%emt 0:05:09]} 11. O-O-O {[%emt 0:06:30]} Be7 {[%emt 0:03:04]} 12. Be2 {[%emt 0:05:41]} b5 {[%emt 0:01:45]} 13. Kb1 {[%emt 0:07:13]} Qc7 {[%emt 0:05:50]} 14. f4 {[%emt 0:07:21]} b4 {[%emt 0:05:02]} 15. Nd5 {[%emt 0:01:33]} Bxd5 {[%emt 0:00:45]} 16. exd5 {[%emt 0:00:03]} a5 {[%emt 0:01:11]} 17. fxe5 {[%emt 0:03:40]} Nxe5 {[%emt 0:01:49]} 18. Bb5+ {[%emt 0:01:21]} Nfd7 {[%emt 0:02:52]} 19. Nd4 {[%emt 0:03:12]} O-O {[%emt 0:06:51]} 20. Nf5 {[%emt 0:10:57]} Bf6 {[%emt 0:04:08]} 21. Bg5 {[%emt 0:02:43]} Qd8 {[%emt 0:05:31]} 22. Bxf6 {[%emt 0:03:26]} Nxf6 {[%emt 0:02:10]} 23. Rhf1 {[%emt 0:02:38]} Rb8 {[%emt 0:11:20]} 24. Qg5 {[%emt 0:03:19]} Ng6 {[%emt 0:09:12]} 25. Bd3 {[%emt 0:06:34]} Nxd5 {[%emt 0:04:55]} 26. Nh6+ {[%emt 0:00:40]} gxh6 {[%emt 0:01:42]} 27. Qxd5 {[%emt 0:00:06]} Qg5 {[%emt 0:02:30]} 28. Bxg6 {[%emt 0:04:31]} Qxd5 {[%emt 0:04:07]} 29. Bh7+ {[%emt 0:00:09]} Kxh7 {[%emt 0:01:11]} 30. Rxd5 {[%emt 0:00:00]} a4 {[%emt 0:03:14]} 31. Ra5 {[%emt 0:04:31]} a3 {[%emt 0:00:43]} 32. bxa3 {[%emt 0:00:26]} bxa3+ {[%emt 0:01:00]} 33. Kc1 {[%emt 0:00:08]} Rbd8 {[%emt 0:01:49]} 34. Rxa3 {[%emt 0:01:01]} f5 {[%emt 0:00:56]} 35. Ra5 {[%emt 0:02:53]} Kg6 {[%emt 0:00:46]} 36. Kd2 {[%emt 0:00:19]} d5 {[%emt 0:01:01]} 37. a4 {[%emt 0:02:02]} Ra8 {[%emt 0:00:31]} 38. Rxa8 {[%emt 0:02:03]} Rxa8 {[%emt 0:00:05]} 39. Ra1 {[%emt 0:00:06]} Kf6 {[%emt 0:00:12]} 40. a5 {[%emt 0:00:36]} Ke5 {[%emt 0:00:18]} 41. Kd3 {[%emt 0:30:29]} Kd6 {[%emt 0:30:18]} 42. a6 {[%emt 0:00:45]} Kc5 {[%emt 0:00:00]} 43. c3 {[%emt 0:00:00]} f4 {[%emt 0:00:00]} 44. a7 {[%emt 0:00:00]} h4 {[%emt 0:00:00]} 45. h3 {[%emt 0:00:00]} h5 {[%emt 0:00:00]} 46. Ra2 {[%emt 0:00:00]} Kb6 {[%emt 0:00:00]} 47. Kd4 {[%emt 0:00:00]} Kc6 {[%emt 0:00:00]} 48. c4 {[%emt 0:00:00]} dxc4 {[%emt 0:00:00]} 49. Kxc4 {[%emt 0:00:00]} Kb6 {[%emt 0:00:00]} 50. Kb4 {[%emt 0:00:00]} Kc6 {[%emt 0:00:00]} 51. Ra6+ {[%emt 0:00:00]} Kb7 {[%emt 0:00:00]} 52. Kb5 {[%emt 0:00:00]} Rxa7 {[%emt 0:00:00]} 53. Rxa7+ {[%emt 0:00:00]} Kxa7 {[%emt 0:00:00]} 54. Kc5 {[%emt 0:00:00]} Kb7 {[%emt 0:00:00]} 55. Kd5 {[%emt 0:00:00]} Kc7 {[%emt 0:00:00]} 56. Ke5 {[%emt 0:00:00]} Kd7 {[%emt 0:00:00]} 57. Kxf4 {[%emt 0:00:00]} 1-0

[Event "GER-ch Youth U14W 2020"]
[Site "Willingen"]
[Date "2020.10.23"]
[Round "5.8"]
[White "Zöllner, Bente"]
[Black "Schulz, Hannah"]
[Result "1-0"]
[ECO "A43"]
[WhiteElo "1630"]
[BlackElo "1589"]
[Annotator "NA RC"]
[PlyCount "93"]
[EventDate "2020.10.20"]
[EventType "swiss"]
[EventRounds "7"]
[EventCountry "GER"]
[SourceTitle "playchess.com"]
[Source "ChessBase"]
[SourceQuality "1"]
[TimeControl "40/5400+30:1800+30"]

1. d4 {[%emt 0:00:00]} Nf6 {[%emt 0:00:00]} 2. Nf3 {[%emt 0:00:00]} c5 {[%emt 0:00:00]} 3. d5 {[%emt 0:00:16]} g6 {[%emt 0:00:36]} 4. Nc3 {[%emt 0:00:56]} Bg7 {[%emt 0:05:11]} 5. e4 {[%emt 0:01:04]} d6 {[%emt 0:00:59]} 6. h3 {[%emt 0:00:58]} O-O {[%emt 0:01:44]} 7. Be2 {[%emt 0:01:26]} a6 {[%emt 0:01:19]} 8. a4 {[%emt 0:01:07]} a5 {[%emt 0:04:51]} 9. O-O {[%emt 0:02:53]} Nbd7 {[%emt 0:01:28]} 10. Bb5 {[%emt 0:01:39]} Nb6 {[%emt 0:01:13]} 11. Qe2 {[%emt 0:03:13]} Bd7 {[%emt 0:02:10]} 12. Bd2 {[%emt 0:01:32]} Qc7 {[%emt 0:01:17]} 13. Rab1 {[%emt 0:03:41]} Rfc8 {[%emt 0:03:24]} 14. Rfc1 {[%emt 0:02:02]} Bxb5 {[%emt 0:03:25]} 15. Nxb5 {[%emt 0:01:23]} Qd7 {[%emt 0:00:32]} 16. b3 {[%emt 0:01:00]} Ne8 {[%emt 0:01:12]} 17. Qe1 {[%emt 0:02:02]} Nc7 {[%emt 0:04:19]} 18. Nxc7 {[%emt 0:02:20]} Qxc7 {[%emt 0:00:45]} 19. Bxa5 {[%emt 0:01:37]} Ra6 {[%emt 0:01:43]} 20. Bc3 {[%emt 0:08:37]} Bh6 {[%emt 0:09:05]} 21. Bd2 {[%emt 0:01:14]} Bxd2 {[%emt 0:00:07]} 22. Qxd2 {[%emt 0:01:03]} c4 {[%emt 0:01:46]} 23. Qh6 {[%emt 0:01:10]} f6 {[%emt 0:00:30]} 24. Nd4 {[%emt 0:00:57]} e5 {[%emt 0:02:07]} 25. dxe6 {[%emt 0:07:47]} Qe7 {[%emt 0:02:05]} 26. f4 {[%emt 0:05:01]} Ra5 {[%emt 0:06:11]} 27. f5 {[%emt 0:02:15]} g5 {[%emt 0:01:24]} 28. Nb5 {[%emt 0:06:53]} d5 {[%emt 0:03:34]} 29. exd5 {[%emt 0:08:12]} Nxd5 {[%emt 0:02:56]} 30. Rd1 {[%emt 0:04:23]} Nb6 {[%emt 0:04:28]} 31. Rd4 {[%emt 0:08:15]} cxb3 {[%emt 0:01:06]} 32. cxb3 {[%emt 0:02:30]} Raa8 {[%emt 0:07:11]} 33. h4 {[%emt 0:04:08]} gxh4 {[%emt 0:01:27]} 34. Rg4+ {[%emt 0:02:31]} Kh8 {[%emt 0:00:33]} 35. Nd6 {[%emt 0:03:00]} Rf8 {[%emt 0:00:14]} 36. Nf7+ {[%emt 0:03:23]} Rxf7 {[%emt 0:00:07]} 37. exf7 {[%emt 0:00:16]} Qxf7 {[%emt 0:00:11]} 38. Re1 {[%emt 0:03:06]} Rd8 {[%emt 0:01:01]} 39. Rxh4 {[%emt 0:01:55]} Nd7 {[%emt 0:02:10]} 40. Qh5 {[%emt 0:01:09]} Qg8 {[%emt 0:01:21]} 41. Re7 {[%emt 0:32:23]} Nf8 {[%emt 0:30:33]} 42. Qf7 {[%emt 0:00:00]} Qxf7 {[%emt 0:00:00]} 43. Rxf7 {[%emt 0:00:00]} Kg8 {[%emt 0:00:00]} 44. Rxb7 {[%emt 0:00:00]} Rd1+ {[%emt 0:00:00]} 45. Kf2 {[%emt 0:00:00]} Rd5 {[%emt 0:00:00]} 46. Rg4+ {[%emt 0:00:00]} Kh8 {[%emt 0:00:00]} 47. Rb8 {[%emt 0:00:00]} 1-0

[Event "GER-ch Youth U14W 2020"]
[Site "Willingen"]
[Date "2020.10.23"]
[Round "5.9"]
[White "Pikki, Daria"]
[Black "Lorenz, Anouk"]
[Result "1-0"]
[ECO "A85"]
[WhiteElo "1545"]
[BlackElo "1504"]
[Annotator "NA RC"]
[PlyCount "87"]
[EventDate "2020.10.20"]
[EventType "swiss"]
[EventRounds "7"]
[EventCountry "GER"]
[SourceTitle "playchess.com"]
[Source "ChessBase"]
[SourceQuality "1"]
[TimeControl "40/5400+30:1800+30"]

1. d4 {[%emt 0:00:00]} f5 {[%emt 0:00:00]} 2. c4 {[%emt 0:00:00]} Nf6 {[%emt 0:00:00]} 3. Nc3 {[%emt 0:00:00]} g6 {[%emt 0:00:00]} 4. Nf3 {[%emt 0:00:01]} Bg7 {[%emt 0:00:00]} 5. g3 {[%emt 0:00:12]} O-O {[%emt 0:00:01]} 6. Bg2 {[%emt 0:00:04]} d6 {[%emt 0:00:07]} 7. O-O {[%emt 0:00:06]} Qe8 {[%emt 0:00:05]} 8. b3 {[%emt 0:00:09]} e5 {[%emt 0:01:48]} 9. dxe5 {[%emt 0:00:12]} dxe5 {[%emt 0:00:19]} 10. e4 {[%emt 0:00:07]} c6 {[%emt 0:08:23]} 11. Bb2 {[%emt 0:04:28]} Na6 {[%emt 0:10:13]} 12. Qe2 {[%emt 0:03:24]} f4 {[%emt 0:14:35]} 13. Qd2 {[%emt 0:06:24]} Rf7 {[%emt 0:08:39]} 14. Qd6 {[%emt 0:10:46]} Ng4 {[%emt 0:14:05]} 15. Qd2 {[%emt 0:05:45]} Nc5 {[%emt 0:04:46]} 16. Qe2 {[%emt 0:05:49]} h6 {[%emt 0:13:52]} 17. Nh4 {[%emt 0:02:56]} Re7 {[%emt 0:02:46]} 18. Rad1 {[%emt 0:02:49]} Nf6 {[%emt 0:07:43]} 19. Ba3 {[%emt 0:05:10]} b6 {[%emt 0:01:23]} 20. Rd6 {[%emt 0:04:49]} g5 {[%emt 0:05:16]} 21. Nf5 {[%emt 0:02:33]} Bxf5 {[%emt 0:00:06]} 22. exf5 {[%emt 0:00:07]} Rc8 {[%emt 0:00:39]} 23. Qd2 {[%emt 0:04:02]} Rd7 {[%emt 0:02:48]} 24. Bxc5 {[%emt 0:02:21]} bxc5 {[%emt 0:00:14]} 25. Rxd7 {[%emt 0:03:22]} Nxd7 {[%emt 0:00:51]} 26. Rd1 {[%emt 0:00:59]} Nf6 {[%emt 0:01:09]} 27. Qd6 {[%emt 0:02:47]} Qf8 {[%emt 0:01:48]} 28. Qe6+ {[%emt 0:00:35]} Kh8 {[%emt 0:00:24]} 29. Bxc6 {[%emt 0:03:52]} Qg8 {[%emt 0:00:50]} 30. Bd5 {[%emt 0:02:32]} Qf8 {[%emt 0:00:48]} 31. Qa6 {[%emt 0:03:36]} Rc7 {[%emt 0:00:43]} 32. Nb5 {[%emt 0:00:53]} Rd7 {[%emt 0:00:50]} 33. Nxa7 {[%emt 0:00:50]} Nxd5 {[%emt 0:00:23]} 34. Rxd5 {[%emt 0:00:24]} Rxd5 {[%emt 0:00:41]} 35. cxd5 {[%emt 0:00:13]} Qxf5 {[%emt 0:00:07]} 36. Qe6 {[%emt 0:01:53]} Qxe6 {[%emt 0:01:03]} 37. dxe6 {[%emt 0:00:05]} Bf6 {[%emt 0:00:05]} 38. Nc6 {[%emt 0:00:43]} Kg7 {[%emt 0:00:13]} 39. a4 {[%emt 0:01:05]} e4 {[%emt 0:00:33]} 40. a5 {[%emt 0:00:39]} fxg3 {[%emt 0:00:39]} 41. hxg3 {[%emt 0:30:09]} Bd4 {[%emt 0:30:36]} 42. a6 {[%emt 0:01:14]} Kf6 {[%emt 0:00:19]} 43. Nxd4 {[%emt 0:01:05]} cxd4 {[%emt 0:00:10]} 44. a7 {[%emt 0:00:12]} 1-0

[Event "GER-ch Youth U14W 2020"]
[Site "Willingen"]
[Date "2020.10.23"]
[Round "5.10"]
[White "Deák-Sala, Emília"]
[Black "Ulrich, Helena Irene"]
[Result "0-1"]
[ECO "B23"]
[WhiteElo "1641"]
[BlackElo "1610"]
[Annotator "NA RC"]
[PlyCount "110"]
[EventDate "2020.10.20"]
[EventType "swiss"]
[EventRounds "7"]
[EventCountry "GER"]
[SourceTitle "playchess.com"]
[Source "ChessBase"]
[SourceQuality "1"]
[TimeControl "40/5400+30:1800+30"]

1. e4 {[%emt 0:00:00]} c5 {[%emt 0:00:00]} 2. Ne2 {[%emt 0:00:00]} Nc6 {[%emt 0:00:32]} 3. Nbc3 {[%emt 0:00:00]} d6 {[%emt 0:04:05]} 4. d3 {[%emt 0:00:00]} g6 {[%emt 0:01:57]} 5. Be3 {[%emt 0:00:00]} Bg7 {[%emt 0:00:12]} 6. h3 {[%emt 0:00:17]} Nd4 {[%emt 0:05:37]} 7. Qd2 {[%emt 0:01:49]} a6 {[%emt 0:07:20]} 8. Nd1 {[%emt 0:08:48]} Nxe2 {[%emt 0:07:57]} 9. Bxe2 {[%emt 0:00:18]} Nf6 {[%emt 0:02:32]} 10. g4 {[%emt 0:01:00]} b5 {[%emt 0:16:48]} 11. Bh6 {[%emt 0:08:08]} O-O {[%emt 0:03:34]} 12. Bxg7 {[%emt 0:01:24]} Kxg7 {[%emt 0:00:05]} 13. g5 {[%emt 0:01:14]} Ne8 {[%emt 0:01:14]} 14. h4 {[%emt 0:02:12]} d5 {[%emt 0:03:29]} 15. Qc3+ {[%emt 0:05:23]} Kg8 {[%emt 0:01:48]} 16. Qxc5 {[%emt 0:00:29]} dxe4 {[%emt 0:00:09]} 17. dxe4 {[%emt 0:02:34]} Bb7 {[%emt 0:00:41]} 18. Bd3 {[%emt 0:02:00]} Nd6 {[%emt 0:01:59]} 19. f3 {[%emt 0:04:02]} Rc8 {[%emt 0:01:47]} 20. Qf2 {[%emt 0:01:55]} Qa5+ {[%emt 0:01:40]} 21. c3 {[%emt 0:02:24]} Rfd8 {[%emt 0:03:02]} 22. Qh2 {[%emt 0:06:10]} b4 {[%emt 0:06:47]} 23. h5 {[%emt 0:07:36]} bxc3 {[%emt 0:00:39]} 24. Nxc3 {[%emt 0:02:38]} Rxc3 {[%emt 0:00:46]} 25. bxc3 {[%emt 0:02:57]} Qxc3+ {[%emt 0:00:05]} 26. Ke2 {[%emt 0:09:07]} Qb2+ {[%emt 0:01:14]} 27. Ke3 {[%emt 0:01:13]} Nf5+ {[%emt 0:05:06]} 28. Kf4 {[%emt 0:08:37]} Qxh2+ {[%emt 0:09:20]} 29. Rxh2 {[%emt 0:00:29]} Rxd3 {[%emt 0:00:05]} 30. exf5 Rxf3+ 31. Kg4 {[%emt 0:04:37]} gxf5+ {[%emt 0:00:52]} 32. Kh4 {[%emt 0:00:04]} Rf4+ {[%emt 0:00:23]} 33. Kg3 {[%emt 0:00:04]} Rg4+ {[%emt 0:00:12]} 34. Kf2 {[%emt 0:01:34]} Rxg5 {[%emt 0:00:23]} 35. Rb1 {[%emt 0:00:53]} Be4 {[%emt 0:02:14]} 36. Rb6 {[%emt 0:02:00]} a5 {[%emt 0:00:59]} 37. Rb5 {[%emt 0:00:57]} a4 {[%emt 0:00:51]} 38. Ra5 {[%emt 0:01:55]} Bc2 {[%emt 0:03:09]} 39. Ke1 {[%emt 0:01:24]} Rg1+ {[%emt 0:01:02]} 40. Kd2 {[%emt 0:00:30]} Be4 {[%emt 0:05:26]} 41. Rxa4 {[%emt 0:31:24]} h6 {[%emt 0:30:44]} 42. Rb4 {[%emt 0:02:30]} Ra1 {[%emt 0:01:40]} 43. Rb2 {[%emt 0:00:08]} e5 {[%emt 0:00:42]} 44. Rh3 {[%emt 0:03:43]} f4 {[%emt 0:01:55]} 45. a3 {[%emt 0:00:50]} f3 {[%emt 0:00:00]} 46. Rg3+ {[%emt 0:00:00]} Kf8 {[%emt 0:00:00]} 47. Ke3 {[%emt 0:00:00]} Bd5 {[%emt 0:00:00]} 48. Kf2 {[%emt 0:00:00]} Rxa3 {[%emt 0:00:00]} 49. Rg1 {[%emt 0:00:00]} Ke7 {[%emt 0:00:00]} 50. Rb6 {[%emt 0:00:00]} Ra2+ {[%emt 0:00:00]} 51. Ke3 {[%emt 0:00:00]} Re2+ {[%emt 0:00:00]} 52. Kd3 {[%emt 0:00:00]} Be4+ {[%emt 0:00:00]} 53. Kc3 {[%emt 0:00:00]} f2 {[%emt 0:00:00]} 54. Rf1 {[%emt 0:00:00]} Bg2 {[%emt 0:00:00]} 55. Rxh6 {[%emt 0:00:00]} Bxf1 {[%emt 0:00:00]} 0-1

[Event "GER-ch Youth U14W 2020"]
[Site "Willingen"]
[Date "2020.10.23"]
[Round "5.11"]
[White "Roncea, Andrea-Alexandra"]
[Black "Foos, Vanessa"]
[Result "1-0"]
[ECO "B03"]
[WhiteElo "1644"]
[BlackElo "1328"]
[Annotator "NA RC"]
[PlyCount "49"]
[EventDate "2020.10.20"]
[EventType "swiss"]
[EventRounds "7"]
[EventCountry "GER"]
[SourceTitle "playchess.com"]
[Source "ChessBase"]
[SourceQuality "1"]
[TimeControl "40/5400+30:1800+30"]

1. e4 {[%emt 0:00:00]} Nf6 {[%emt 0:00:00]} 2. e5 {[%emt 0:00:00]} Nd5 {[%emt 0:00:00]} 3. d4 {[%emt 0:00:00]} d6 {[%emt 0:00:00]} 4. c4 {[%emt 0:00:00]} Nb6 {[%emt 0:00:02]} 5. exd6 {[%emt 0:00:00]} exd6 {[%emt 0:00:15]} 6. h3 {[%emt 0:00:29]} g6 {[%emt 0:01:03]} 7. Nf3 {[%emt 0:01:10]} Bg7 {[%emt 0:00:22]} 8. Be2 {[%emt 0:01:07]} O-O {[%emt 0:00:40]} 9. O-O {[%emt 0:01:36]} Nc6 {[%emt 0:09:22]} 10. Nc3 {[%emt 0:05:06]} Re8 {[%emt 0:02:51]} 11. b3 {[%emt 0:11:34]} Qf6 {[%emt 0:22:14]} 12. Be3 {[%emt 0:07:53]} Qe7 {[%emt 0:19:51]} 13. Rc1 {[%emt 0:05:12]} Bf5 {[%emt 0:11:03]} 14. Bg5 {[%emt 0:08:10]} f6 {[%emt 0:02:39]} 15. Be3 {[%emt 0:00:50]} Rad8 {[%emt 0:05:02]} 16. d5 {[%emt 0:06:07]} Ne5 {[%emt 0:03:37]} 17. Nd4 {[%emt 0:02:56]} Bc8 {[%emt 0:04:35]} 18. Re1 {[%emt 0:04:58]} Qd7 {[%emt 0:08:16]} 19. Ne6 {[%emt 0:02:37]} Rxe6 {[%emt 0:01:55]} 20. dxe6 {[%emt 0:00:11]} Qxe6 {[%emt 0:00:04]} 21. Bxb6 {[%emt 0:01:53]} axb6 {[%emt 0:00:06]} 22. c5 {[%emt 0:02:26]} Kf8 {[%emt 0:01:23]} 23. cxb6 {[%emt 0:01:36]} c6 {[%emt 0:01:38]} 24. f4 {[%emt 0:07:05]} Nf7 {[%emt 0:01:34]} 25. Bg4 {[%emt 0:00:37]} 1-0

[Event "GER-ch Youth U14W 2020"]
[Site "Willingen"]
[Date "2020.10.23"]
[Round "5.12"]
[White "Lieberwirth, Nele"]
[Black "Fischer, Darja"]
[Result "0-1"]
[ECO "D61"]
[WhiteElo "1366"]
[BlackElo "1598"]
[Annotator "NA RC"]
[PlyCount "90"]
[EventDate "2020.10.20"]
[EventType "swiss"]
[EventRounds "7"]
[EventCountry "GER"]
[SourceTitle "playchess.com"]
[Source "ChessBase"]
[SourceQuality "1"]
[TimeControl "40/5400+30:1800+30"]

1. d4 {[%emt 0:00:00]} d5 {[%emt 0:00:00]} 2. c4 {[%emt 0:00:00]} e6 {[%emt 0:00:00]} 3. Nc3 {[%emt 0:00:00]} Nf6 {[%emt 0:00:00]} 4. Bg5 {[%emt 0:00:00]} Nbd7 {[%emt 0:00:02]} 5. e3 {[%emt 0:00:12]} Be7 {[%emt 0:00:27]} 6. Nf3 {[%emt 0:00:18]} O-O {[%emt 0:00:33]} 7. Qc2 {[%emt 0:00:18]} c5 {[%emt 0:00:51]} 8. b3 {[%emt 0:11:15]} b6 {[%emt 0:06:35]} 9. Bd3 {[%emt 0:09:16]} h6 {[%emt 0:03:08]} 10. Bf4 {[%emt 0:07:13]} Bb7 {[%emt 0:05:55]} 11. O-O {[%emt 0:03:34]} a6 {[%emt 0:08:36]} 12. Rfd1 {[%emt 0:09:33]} Rc8 {[%emt 0:05:28]} 13. Rab1 {[%emt 0:08:26]} Nh5 {[%emt 0:07:21]} 14. Bg3 {[%emt 0:10:29]} Nxg3 {[%emt 0:03:13]} 15. fxg3 {[%emt 0:01:14]} cxd4 {[%emt 0:07:53]} 16. exd4 {[%emt 0:03:27]} b5 {[%emt 0:07:53]} 17. c5 {[%emt 0:04:11]} Nxc5 {[%emt 0:03:05]} 18. dxc5 {[%emt 0:05:46]} Bxc5+ {[%emt 0:00:25]} 19. Kh1 {[%emt 0:01:46]} Bb4 {[%emt 0:00:49]} 20. Qe2 {[%emt 0:11:25]} Bxc3 {[%emt 0:01:36]} 21. Ne5 {[%emt 0:02:56]} Bxe5 {[%emt 0:01:42]} 22. Qxe5 {[%emt 0:00:06]} Qc7 {[%emt 0:00:48]} 23. Qd4 {[%emt 0:00:45]} e5 {[%emt 0:01:47]} 24. Qg4 {[%emt 0:01:19]} e4 {[%emt 0:01:00]} 25. Be2 {[%emt 0:00:25]} Qe5 {[%emt 0:05:32]} 26. Re1 {[%emt 0:02:33]} Rfd8 {[%emt 0:01:45]} 27. Rbd1 {[%emt 0:00:38]} Qg5 {[%emt 0:01:00]} 28. Qxg5 {[%emt 0:00:58]} hxg5 {[%emt 0:00:19]} 29. Bg4 {[%emt 0:00:14]} Rb8 {[%emt 0:00:27]} 30. h4 {[%emt 0:00:35]} gxh4 {[%emt 0:00:29]} 31. gxh4 {[%emt 0:00:06]} g6 {[%emt 0:01:34]} 32. Rd4 {[%emt 0:00:49]} f5 {[%emt 0:01:41]} 33. Bh3 {[%emt 0:00:08]} Rbc8 {[%emt 0:01:28]} 34. g3 {[%emt 0:00:35]} Rc3 {[%emt 0:00:46]} 35. Rg1 {[%emt 0:01:30]} Rdc8 {[%emt 0:01:14]} 36. Rd2 {[%emt 0:00:54]} Rc2 {[%emt 0:01:19]} 37. Rgg2 {[%emt 0:01:45]} Rxd2 {[%emt 0:00:18]} 38. Rxd2 {[%emt 0:00:08]} e3 {[%emt 0:00:41]} 39. Re2 {[%emt 0:00:23]} d4+ {[%emt 0:00:29]} 40. Kh2 {[%emt 0:00:23]} Be4 {[%emt 0:00:52]} 41. Bf1 {[%emt 0:30:27]} Rc1 {[%emt 0:30:39]} 42. Kg1 {[%emt 0:01:02]} Bd3 {[%emt 0:00:55]} 43. Kg2 {[%emt 0:01:20]} Bxe2 {[%emt 0:00:29]} 44. Bxe2 {[%emt 0:00:08]} Rc2 {[%emt 0:00:05]} 45. Kf3 {[%emt 0:00:10]} Rxa2 {[%emt 0:00:13]} 0-1